[Event "*** Titled Tuesday Blitz"]
[Site "Chess.com"]
[Date "2020.01.07"]
[Round "5"]
[White "vugarrasulov"]
[Black "chessking2151"]
[Result "1/2-1/2"]
[WhiteElo "2837"]
[BlackElo "2603"]
[TimeControl "180+2"]
[EndTime "14:12:23 PST"]
[Termination "Game drawn - insufficient material"]

1. d4 {[%clk 0:03:01.9]} 1... Nf6 {[%clk 0:02:37.3]} 2. Nf3 {[%clk 0:03:03.3]}
2... e6 {[%clk 0:02:38.3]} 3. Bf4 {[%clk 0:03:03.8]} 3... c5 {[%clk 0:02:39.1]}
4. e3 {[%clk 0:03:04.1]} 4... d5 {[%clk 0:02:40.3]} 5. Nbd2 {[%clk 0:03:04]}
5... Nc6 {[%clk 0:02:40.2]} 6. c3 {[%clk 0:03:04.5]} 6... Bd6 {[%clk 0:02:39]}
7. Bxd6 {[%clk 0:03:05.9]} 7... Qxd6 {[%clk 0:02:38.5]} 8. dxc5 {[%clk
0:03:07.8]} 8... Qxc5 {[%clk 0:02:38.4]} 9. Bd3 {[%clk 0:03:09.7]} 9... e5
{[%clk 0:02:22.6]} 10. e4 {[%clk 0:03:10.8]} 10... Bg4 {[%clk 0:02:19.1]} 11. h3
{[%clk 0:03:05.5]} 11... Bh5 {[%clk 0:02:18.3]} 12. O-O {[%clk 0:03:03.9]} 12...
O-O {[%clk 0:01:44.2]} 13. Qe2 {[%clk 0:03:01.6]} 13... Rfe8 {[%clk 0:01:40.5]}
14. Rad1 {[%clk 0:02:46.6]} 14... Rad8 {[%clk 0:01:30]} 15. Rfe1 {[%clk
0:02:47.5]} 15... Bg6 {[%clk 0:01:26.4]} 16. Nh4 {[%clk 0:02:37.2]} 16... Bh5
{[%clk 0:01:22.8]} 17. g4 {[%clk 0:02:32.6]} 17... Bg6 {[%clk 0:01:22.3]} 18.
Nf5 {[%clk 0:02:29.7]} 18... Bxf5 {[%clk 0:01:07.4]} 19. gxf5 {[%clk 0:02:30.4]}
19... g6 {[%clk 0:01:02.3]} 20. fxg6 {[%clk 0:02:27.8]} 20... hxg6 {[%clk
0:01:01.8]} 21. Qf3 {[%clk 0:02:23.7]} 21... Nh5 {[%clk 0:01:00.6]} 22. Nb3
{[%clk 0:01:56.3]} 22... dxe4 {[%clk 0:00:40.1]} 23. Nxc5 {[%clk 0:01:45]} 23...
exf3 {[%clk 0:00:38.8]} 24. Be4 {[%clk 0:01:46.9]} 24... Nf4 {[%clk 0:00:34.6]}
25. Kh2 {[%clk 0:01:47.1]} 25... Rxd1 {[%clk 0:00:24.2]} 26. Rxd1 {[%clk
0:01:47.9]} 26... b6 {[%clk 0:00:15.2]} 27. Nd7 {[%clk 0:01:38.2]} 27... Re6
{[%clk 0:00:13.5]} 28. Bxf3 {[%clk 0:01:39]} 28... Kg7 {[%clk 0:00:11.1]} 29.
Kg3 {[%clk 0:01:28.5]} 29... Ne7 {[%clk 0:00:10.4]} 30. Bg4 {[%clk 0:01:23]}
30... f5 {[%clk 0:00:11]} 31. Bf3 {[%clk 0:01:24.4]} 31... g5 {[%clk 0:00:09.8]}
32. h4 {[%clk 0:01:00.3]} 32... g4 {[%clk 0:00:09.8]} 33. Bb7 {[%clk 0:00:56.1]}
33... Nh5+ {[%clk 0:00:10.3]} 34. Kh2 {[%clk 0:00:56.8]} 34... f4 {[%clk
0:00:11.4]} 35. Be4 {[%clk 0:00:55.7]} 35... g3+ {[%clk 0:00:07.2]} 36. Kg2
{[%clk 0:00:53.2]} 36... gxf2 {[%clk 0:00:07.7]} 37. Kxf2 {[%clk 0:00:55.1]}
37... Ng3 {[%clk 0:00:08.8]} 38. Kf3 {[%clk 0:00:56.6]} 38... Ng6 {[%clk
0:00:05.3]} 39. Bxg6 {[%clk 0:00:36.3]} 39... Kxg6 {[%clk 0:00:05.4]} 40. Nxe5+
{[%clk 0:00:37.9]} 40... Rxe5 {[%clk 0:00:05.8]} 41. Kxf4 {[%clk 0:00:39.5]}
41... Re2 {[%clk 0:00:06.8]} 42. Rd6+ {[%clk 0:00:35.9]} 42... Kh5 {[%clk
0:00:06.9]} 43. Kxg3 {[%clk 0:00:37.4]} 43... Rxb2 {[%clk 0:00:07.6]} 44. a4
{[%clk 0:00:35.6]} 44... Ra2 {[%clk 0:00:07.5]} 45. Rd5+ {[%clk 0:00:32.4]}
45... Kg6 {[%clk 0:00:08]} 46. Rd4 {[%clk 0:00:33.7]} 46... Ra3 {[%clk
0:00:08.6]} 47. Rc4 {[%clk 0:00:35.2]} 47... Kh5 {[%clk 0:00:07.6]} 48. Kf4
{[%clk 0:00:31]} 48... Kxh4 {[%clk 0:00:07.6]} 49. Ke5+ {[%clk 0:00:32.5]} 49...
Kg5 {[%clk 0:00:08.9]} 50. Kd6 {[%clk 0:00:33.9]} 50... Kf5 {[%clk 0:00:10.3]}
51. Kc7 {[%clk 0:00:32.5]} 51... Ke5 {[%clk 0:00:11.2]} 52. Kc6 {[%clk
0:00:33.4]} 52... Rb3 {[%clk 0:00:09.9]} 53. Kb7 {[%clk 0:00:32.4]} 53... Ra3
{[%clk 0:00:09.1]} 54. Kc6 {[%clk 0:00:26.2]} 54... Rb3 {[%clk 0:00:09.3]} 55.
Kb7 {[%clk 0:00:24.6]} 55... Ra3 {[%clk 0:00:09.8]} 56. Kxa7 {[%clk 0:00:17.3]}
56... Kd5 {[%clk 0:00:07.4]} 57. Rc8 {[%clk 0:00:16.7]} 57... Rxa4+ {[%clk
0:00:07.9]} 58. Kxb6 {[%clk 0:00:17.8]} 58... Rc4 {[%clk 0:00:08.8]} 59. Rd8+
{[%clk 0:00:14.3]} 59... Ke4 {[%clk 0:00:09.5]} 60. Kb5 {[%clk 0:00:16.1]} 60...
Rxc3 {[%clk 0:00:10.2]} 61. Kb4 {[%clk 0:00:17.4]} 61... Rc7 {[%clk 0:00:10.5]}
62. Rd6 {[%clk 0:00:18.4]} 62... Rb7+ {[%clk 0:00:11.2]} 63. Kc3 {[%clk
0:00:19.3]} 63... Rc7+ {[%clk 0:00:12.3]} 64. Kd2 {[%clk 0:00:20.7]} 64... Ke5
{[%clk 0:00:11.5]} 65. Rd3 {[%clk 0:00:21.5]} 65... Rc4 {[%clk 0:00:11.8]} 66.
Re3+ {[%clk 0:00:22.3]} 66... Re4 {[%clk 0:00:12.8]} 67. Rh3 {[%clk 0:00:24.2]}
67... Rd4+ {[%clk 0:00:13.9]} 68. Ke3 {[%clk 0:00:25]} 68... Re4+ {[%clk
0:00:14.9]} 69. Kd3 {[%clk 0:00:26.6]} 69... Rd4+ {[%clk 0:00:16]} 70. Kc3
{[%clk 0:00:28.2]} 70... Re4 {[%clk 0:00:17.4]} 71. Rh5+ {[%clk 0:00:29.2]}
71... Kf4 {[%clk 0:00:18.9]} 72. Kd3 {[%clk 0:00:30.7]} 72... Re3+ {[%clk
0:00:20.2]} 73. Kd4 {[%clk 0:00:32.2]} 73... Re4+ {[%clk 0:00:21.5]} 74. Kd5
{[%clk 0:00:33.8]} 74... Re1 {[%clk 0:00:21.8]} 75. Rh4+ {[%clk 0:00:35.1]}
75... Kf5 {[%clk 0:00:23.1]} 76. Ra4 {[%clk 0:00:36.9]} 76... Rd1+ {[%clk
0:00:24]} 77. Kc6 {[%clk 0:00:38.6]} 77... Ke5 {[%clk 0:00:24]} 78. Ra2 {[%clk
0:00:38.6]} 78... Rc1+ {[%clk 0:00:21.7]} 79. Kd7 {[%clk 0:00:39.7]} 79... Rd1+
{[%clk 0:00:22.4]} 80. Ke7 {[%clk 0:00:41.2]} 80... Rc1 {[%clk 0:00:20.5]} 81.
Ra5+ {[%clk 0:00:42.3]} 81... Kd4 {[%clk 0:00:20.8]} 82. Kd6 {[%clk 0:00:43.5]}
82... Ke4 {[%clk 0:00:21.5]} 83. Ra4+ {[%clk 0:00:43.8]} 83... Kf5 {[%clk
0:00:22.2]} 84. Ra5+ {[%clk 0:00:45]} 84... Ke4 {[%clk 0:00:22.6]} 85. Ra2
{[%clk 0:00:46.9]} 85... Rd1+ {[%clk 0:00:23]} 86. Ke6 {[%clk 0:00:48.4]} 86...
Rd4 {[%clk 0:00:21.6]} 87. Ra5 {[%clk 0:00:48.8]} 87... Rc4 {[%clk 0:00:21.8]}
88. Ra6 {[%clk 0:00:48]} 88... Kd4 {[%clk 0:00:22]} 89. Rd6+ {[%clk 0:00:48.2]}
89... Kc5 {[%clk 0:00:22.4]} 90. Rd1 {[%clk 0:00:48.9]} 90... Re4+ {[%clk
0:00:22.8]} 91. Kf5 {[%clk 0:00:50.1]} 91... Rd4 {[%clk 0:00:23.8]} 92. Re1
{[%clk 0:00:51.7]} 92... Kd5 {[%clk 0:00:24.7]} 93. Re5+ {[%clk 0:00:49.5]}
93... Kd6 {[%clk 0:00:24.7]} 94. Re4 {[%clk 0:00:50.9]} 94... Rxe4 {[%clk
0:00:25.4]} 95. Kxe4 {[%clk 0:00:52.8]} 1/2-1/2

[Event "*** Titled Tuesday Blitz"]
[Site "Chess.com"]
[Date "2020.01.07"]
[Round "5"]
[White "adriangschnitzer"]
[Black "Bad4life"]
[Result "0-1"]
[WhiteElo "2529"]
[BlackElo "2339"]
[TimeControl "180+2"]
[EndTime "14:12:23 PST"]
[Termination "Bad4life won by checkmate"]

1. c4 {[%clk 0:03:01.9]} 1... e5 {[%clk 0:02:58.2]} 2. Nc3 {[%clk 0:03:02.4]}
2... Nf6 {[%clk 0:02:59.2]} 3. Nf3 {[%clk 0:03:03.5]} 3... Nc6 {[%clk
0:02:59.9]} 4. e3 {[%clk 0:03:04.7]} 4... Bb4 {[%clk 0:02:59.2]} 5. Qc2 {[%clk
0:03:00.8]} 5... Bxc3 {[%clk 0:02:59.7]} 6. Qxc3 {[%clk 0:03:02.7]} 6... Qe7
{[%clk 0:02:57.7]} 7. b3 {[%clk 0:02:59.8]} 7... O-O {[%clk 0:02:57.7]} 8. Bb2
{[%clk 0:02:51.2]} 8... d6 {[%clk 0:02:53.5]} 9. Be2 {[%clk 0:02:28.8]} 9... Ne4
{[%clk 0:02:54.7]} 10. Qc2 {[%clk 0:02:27.6]} 10... Bf5 {[%clk 0:02:55.7]} 11.
d3 {[%clk 0:02:28.6]} 11... Nb4 {[%clk 0:02:48.5]} 12. Qd1 {[%clk 0:02:19.7]}
12... Nc5 {[%clk 0:02:48.5]} 13. e4 {[%clk 0:02:16.5]} 13... Bd7 {[%clk
0:02:49.7]} 14. O-O {[%clk 0:02:10.7]} 14... a5 {[%clk 0:02:50.3]} 15. a3 {[%clk
0:02:03.2]} 15... Nc6 {[%clk 0:02:50.2]} 16. Re1 {[%clk 0:02:01]} 16... Bg4
{[%clk 0:02:39.6]} 17. Nxe5 {[%clk 0:01:44.1]} 17... Nxe5 {[%clk 0:02:32.5]} 18.
d4 {[%clk 0:01:32.6]} 18... Rad8 {[%clk 0:02:05.8]} 19. Bxg4 {[%clk 0:01:06.4]}
19... Nxg4 {[%clk 0:01:42.1]} 20. Qxg4 {[%clk 0:01:01.5]} 20... Nxb3 {[%clk
0:01:28.3]} 21. Rad1 {[%clk 0:00:39.1]} 21... a4 {[%clk 0:01:11.9]} 22. Re3
{[%clk 0:00:33.9]} 22... Qe6 {[%clk 0:01:04.7]} 23. Qh4 {[%clk 0:00:19]} 23...
Qxc4 {[%clk 0:00:49.2]} 24. Rh3 {[%clk 0:00:14.2]} 24... h6 {[%clk 0:00:49.7]}
25. Qg4 {[%clk 0:00:08.1]} 25... Qe6 {[%clk 0:00:44.6]} 26. Qf3 {[%clk
0:00:08.7]} 26... Rde8 {[%clk 0:00:35.8]} 27. d5 {[%clk 0:00:09]} 27... Qxe4
{[%clk 0:00:34.2]} 28. Qc3 {[%clk 0:00:09.9]} 28... f6 {[%clk 0:00:30.8]} 29.
Re3 {[%clk 0:00:09.5]} 29... Qg4 {[%clk 0:00:30.6]} 30. f3 {[%clk 0:00:08.6]}
30... Qf5 {[%clk 0:00:28.6]} 31. Rde1 {[%clk 0:00:09.1]} 31... Re5 {[%clk
0:00:28.8]} 32. g4 {[%clk 0:00:05.6]} 32... Qf4 {[%clk 0:00:25.5]} 33. Re4
{[%clk 0:00:04.6]} 33... Qd2 {[%clk 0:00:22.4]} 34. Qxd2 {[%clk 0:00:03.6]}
34... Nxd2 {[%clk 0:00:24.3]} 35. Bxe5 {[%clk 0:00:03.6]} 35... Nxf3+ {[%clk
0:00:24.8]} 36. Kf2 {[%clk 0:00:03.1]} 36... Nxe1 {[%clk 0:00:26.2]} 37. Kxe1
{[%clk 0:00:03.4]} 37... Re8 {[%clk 0:00:25]} 38. Rxa4 {[%clk 0:00:02.4]} 38...
Rxe5+ {[%clk 0:00:26]} 39. Kf2 {[%clk 0:00:04.3]} 39... Rxd5 {[%clk 0:00:27.2]}
40. Ra8+ {[%clk 0:00:05.8]} 40... Kh7 {[%clk 0:00:26.8]} 41. Rb8 {[%clk
0:00:07.7]} 41... b6 {[%clk 0:00:26.8]} 42. a4 {[%clk 0:00:08.1]} 42... Rc5
{[%clk 0:00:26.1]} 43. Rc8 {[%clk 0:00:10]} 43... Kg6 {[%clk 0:00:27.2]} 44. Kf3
{[%clk 0:00:11.2]} 44... Rc4 {[%clk 0:00:28]} 45. h4 {[%clk 0:00:13.1]} 45... h5
{[%clk 0:00:28.4]} 46. gxh5+ {[%clk 0:00:13]} 46... Kxh5 {[%clk 0:00:30.3]} 47.
Rh8+ {[%clk 0:00:13]} 47... Kg6 {[%clk 0:00:31.7]} 48. Rc8 {[%clk 0:00:13.8]}
48... Kf7 {[%clk 0:00:32.2]} 49. h5 {[%clk 0:00:13]} 49... Rc5 {[%clk 0:00:32]}
50. Kg4 {[%clk 0:00:13.5]} 50... Rc4+ {[%clk 0:00:32.6]} 51. Kf5 {[%clk
0:00:14]} 51... Rc5+ {[%clk 0:00:34.1]} 52. Kg4 {[%clk 0:00:15]} 52... Ke6
{[%clk 0:00:28.4]} 53. Re8+ {[%clk 0:00:14.6]} 53... Kd7 {[%clk 0:00:28.8]} 54.
Rg8 {[%clk 0:00:15.8]} 54... Rg5+ {[%clk 0:00:30]} 55. Kh4 {[%clk 0:00:16]}
55... Kc6 {[%clk 0:00:31.5]} 56. Rc8 {[%clk 0:00:15.8]} 56... d5 {[%clk
0:00:32.5]} 57. Rg8 {[%clk 0:00:13.8]} 57... d4 {[%clk 0:00:32.9]} 58. Rd8
{[%clk 0:00:14.7]} 58... Kc5 {[%clk 0:00:33]} 59. Rd7 {[%clk 0:00:15.4]} 59...
c6 {[%clk 0:00:33.6]} 60. Rd8 {[%clk 0:00:16.2]} 60... Kc4 {[%clk 0:00:34.7]}
61. Rd6 {[%clk 0:00:17.4]} 61... Kc5 {[%clk 0:00:30.2]} 62. Rd8 {[%clk
0:00:18.1]} 62... b5 {[%clk 0:00:30.6]} 63. a5 {[%clk 0:00:18.5]} 63... Rg1
{[%clk 0:00:28.1]} 64. Rd7 {[%clk 0:00:15.8]} 64... b4 {[%clk 0:00:27.8]} 65. a6
{[%clk 0:00:16.9]} 65... b3 {[%clk 0:00:26.3]} 66. a7 {[%clk 0:00:17.5]} 66...
Ra1 {[%clk 0:00:27.3]} 67. Rxg7 {[%clk 0:00:18.3]} 67... b2 {[%clk 0:00:27.8]}
68. Rb7 {[%clk 0:00:19.3]} 68... Rxa7 {[%clk 0:00:26.6]} 69. Rxb2 {[%clk
0:00:19.7]} 69... d3 {[%clk 0:00:22.2]} 70. h6 {[%clk 0:00:20.6]} 70... Kd4
{[%clk 0:00:22.5]} 71. Rg2 {[%clk 0:00:21.4]} 71... c5 {[%clk 0:00:20.7]} 72.
Rg7 {[%clk 0:00:22.1]} 72... Ra8 {[%clk 0:00:22.3]} 73. h7 {[%clk 0:00:22.9]}
73... Rh8 {[%clk 0:00:23.9]} 74. Rd7+ {[%clk 0:00:21.9]} 74... Kc3 {[%clk
0:00:24.8]} 75. Kh5 {[%clk 0:00:23.2]} 75... d2 {[%clk 0:00:24.4]} 76. Kg6
{[%clk 0:00:24.4]} 76... Kc2 {[%clk 0:00:24.4]} 77. Rd5 {[%clk 0:00:24.3]} 77...
d1=Q {[%clk 0:00:24]} 78. Rxc5+ {[%clk 0:00:25.3]} 78... Kb3 {[%clk 0:00:24.8]}
79. Rb5+ {[%clk 0:00:26.3]} 79... Kc4 {[%clk 0:00:25.8]} 80. Rf5 {[%clk
0:00:28.2]} 80... Qg4+ {[%clk 0:00:26.3]} 81. Kxf6 {[%clk 0:00:29.1]} 81... Rf8+
{[%clk 0:00:24.2]} 82. Ke7 {[%clk 0:00:29.5]} 82... Qxf5 {[%clk 0:00:24.9]} 83.
h8=Q {[%clk 0:00:30.7]} 83... Rf7+ {[%clk 0:00:25.3]} 84. Kd6 {[%clk 0:00:30.4]}
84... Qd7+ {[%clk 0:00:15.9]} 85. Ke5 {[%clk 0:00:27.8]} 85... Qd5# {[%clk
0:00:17.8]} 0-1

[Event "*** Titled Tuesday Blitz"]
[Site "Chess.com"]
[Date "2020.01.07"]
[Round "5"]
[White "pedroholly22"]
[Black "Rhinos1"]
[Result "0-1"]
[WhiteElo "2327"]
[BlackElo "2139"]
[TimeControl "180+2"]
[EndTime "14:12:48 PST"]
[Termination "Rhinos1 won by resignation"]

1. e4 {[%clk 0:03:01.9]} 1... e5 {[%clk 0:03:00.1]} 2. Nf3 {[%clk 0:03:02.2]}
2... Nc6 {[%clk 0:03:01]} 3. Bb5 {[%clk 0:03:03.4]} 3... a6 {[%clk 0:03:01.4]}
4. Ba4 {[%clk 0:03:03.7]} 4... d6 {[%clk 0:03:02.1]} 5. c3 {[%clk 0:02:59.1]}
5... Bd7 {[%clk 0:03:01.9]} 6. d4 {[%clk 0:02:56.8]} 6... Nge7 {[%clk
0:03:02.4]} 7. O-O {[%clk 0:02:54.9]} 7... Ng6 {[%clk 0:03:03.3]} 8. d5 {[%clk
0:02:54.5]} 8... Nb8 {[%clk 0:03:03.7]} 9. Bc2 {[%clk 0:02:55]} 9... Be7 {[%clk
0:03:04.4]} 10. g3 {[%clk 0:02:55.1]} 10... O-O {[%clk 0:03:05.3]} 11. Ne1
{[%clk 0:02:54.9]} 11... Qc8 {[%clk 0:02:56.3]} 12. Ng2 {[%clk 0:02:51.1]} 12...
f5 {[%clk 0:02:57]} 13. exf5 {[%clk 0:02:51.4]} 13... Bxf5 {[%clk 0:02:58.9]}
14. Bxf5 {[%clk 0:02:51.7]} 14... Qxf5 {[%clk 0:03:00.8]} 15. Ne3 {[%clk
0:02:53.1]} 15... Qf7 {[%clk 0:02:42.3]} 16. Nd2 {[%clk 0:02:53]} 16... Nf4
{[%clk 0:02:38.9]} 17. Ne4 {[%clk 0:02:36.3]} 17... Nh3+ {[%clk 0:02:05.5]} 18.
Kg2 {[%clk 0:02:36]} 18... Nf4+ {[%clk 0:02:06.5]} 19. Kh1 {[%clk 0:02:30.8]}
19... Nd7 {[%clk 0:01:54.4]} 20. gxf4 {[%clk 0:02:30.3]} 20... exf4 {[%clk
0:01:56.3]} 21. Nc2 {[%clk 0:02:27.2]} 21... Rae8 {[%clk 0:01:45.9]} 22. f3
{[%clk 0:02:25.6]} 22... Ne5 {[%clk 0:01:42.5]} 23. Nd4 {[%clk 0:02:18.2]} 23...
Bh4 {[%clk 0:01:24.3]} 24. Ne6 {[%clk 0:02:16.2]} 24... Qh5 {[%clk 0:00:17.5]}
25. Nxf4 {[%clk 0:02:11.9]} 25... Qf5 {[%clk 0:00:05]} 26. Ne6 {[%clk
0:02:11.2]} 26... Rf6 {[%clk 0:00:04.9]} 27. Bg5 {[%clk 0:02:09]} 27... Bxg5
{[%clk 0:00:04.4]} 28. N4xg5 {[%clk 0:02:04.3]} 28... h6 {[%clk 0:00:02.9]} 29.
Ne4 {[%clk 0:02:04.2]} 29... Rg6 {[%clk 0:00:03]} 30. Qe2 {[%clk 0:01:59.9]}
30... c6 {[%clk 0:00:03.2]} 31. Ng3 {[%clk 0:02:00.3]} 31... Qf6 {[%clk
0:00:03.8]} 32. f4 {[%clk 0:01:59.7]} 32... cxd5 {[%clk 0:00:04]} 33. fxe5
{[%clk 0:01:59.6]} 33... Qxe6 {[%clk 0:00:05.2]} 34. exd6 {[%clk 0:01:54.4]}
34... Qxe2 {[%clk 0:00:05.9]} 35. Nxe2 {[%clk 0:01:54.7]} 35... Rxe2 {[%clk
0:00:07.7]} 36. d7 {[%clk 0:01:55.7]} 36... Rd6 {[%clk 0:00:08.9]} 37. Rad1
{[%clk 0:01:48.2]} 37... Rxd7 {[%clk 0:00:09.6]} 38. b3 {[%clk 0:01:48]} 38...
Rxa2 {[%clk 0:00:10.3]} 39. Rf5 {[%clk 0:01:49.6]} 39... Rb2 {[%clk 0:00:10.6]}
40. b4 {[%clk 0:01:49]} 40... Rc2 {[%clk 0:00:10.9]} 41. Rf3 {[%clk 0:01:49.4]}
41... Rc7 {[%clk 0:00:11.7]} 42. Rxd5 {[%clk 0:01:49.4]} 42... R2xc3 {[%clk
0:00:12.9]} 43. Rxc3 {[%clk 0:01:49.9]} 43... Rxc3 {[%clk 0:00:13.5]} 44. Rd7
{[%clk 0:01:51.4]} 44... b5 {[%clk 0:00:13.6]} 45. Rd8+ {[%clk 0:01:52.1]} 45...
Kh7 {[%clk 0:00:14.2]} 46. Ra8 {[%clk 0:01:52.7]} 46... Rc4 {[%clk 0:00:15.1]}
47. Rxa6 {[%clk 0:01:54.4]} 47... Rxb4 {[%clk 0:00:16.6]} 48. Rb6 {[%clk
0:01:56.3]} 48... Rb2 {[%clk 0:00:17.5]} 49. h4 {[%clk 0:01:57]} 49... b4 {[%clk
0:00:18.6]} 50. h5 {[%clk 0:01:57]} 50... Kg8 {[%clk 0:00:18.7]} 51. Rb8+ {[%clk
0:01:56.9]} 51... Kf7 {[%clk 0:00:19.3]} 52. Rb6 {[%clk 0:01:57.8]} 52... b3
{[%clk 0:00:18]} 53. Kg1 {[%clk 0:01:59]} 53... Kf8 {[%clk 0:00:17.6]} 54. Rb7
{[%clk 0:01:58.6]} 54... Kg8 {[%clk 0:00:18.3]} 55. Kh1 {[%clk 0:01:59.2]} 55...
Kf8 {[%clk 0:00:18.8]} 56. Kg1 {[%clk 0:02:00]} 56... Kg8 {[%clk 0:00:19.6]} 57.
Kh1 {[%clk 0:02:01.1]} 57... Kh7 {[%clk 0:00:18.1]} 58. Kg1 {[%clk 0:02:01.8]}
58... Rb1+ {[%clk 0:00:18.1]} 59. Kh2 {[%clk 0:02:01.8]} 59... Rb2+ {[%clk
0:00:18.8]} 60. Kh3 {[%clk 0:02:00.1]} 60... Rb1 {[%clk 0:00:19.5]} 61. Kh2
{[%clk 0:02:01]} 61... b2 {[%clk 0:00:20.9]} 62. Kg2 {[%clk 0:02:00.1]} 62...
Kg8 {[%clk 0:00:21.8]} 63. Kh2 {[%clk 0:01:57.5]} 63... Kf8 {[%clk 0:00:22.9]}
64. Kg2 {[%clk 0:01:58.5]} 64... Ke8 {[%clk 0:00:24.2]} 65. Rb3 {[%clk 0:01:56]}
65... Ke7 {[%clk 0:00:24.5]} 66. Kh2 {[%clk 0:01:54.1]} 66... Kf6 {[%clk
0:00:25.5]} 67. Rb5 {[%clk 0:01:53.3]} 67... Ke6 {[%clk 0:00:26.6]} 68. Kg2
{[%clk 0:01:52.3]} 68... Kd6 {[%clk 0:00:27.6]} 69. Rb8 {[%clk 0:01:52.1]} 69...
Kc5 {[%clk 0:00:27.9]} 70. Rc8+ {[%clk 0:01:52.6]} 70... Kb4 {[%clk 0:00:28]}
71. Rb8+ {[%clk 0:01:53.7]} 71... Kc3 {[%clk 0:00:28.2]} 72. Rc8+ {[%clk
0:01:54.9]} 72... Kd2 {[%clk 0:00:28.9]} 73. Rd8+ {[%clk 0:01:55.4]} 73... Ke3
{[%clk 0:00:29.1]} 74. Rb8 {[%clk 0:01:56.3]} 74... Kf4 {[%clk 0:00:30.2]} 75.
Rb5 {[%clk 0:01:53.7]} 75... Kg4 {[%clk 0:00:30.2]} 76. Kh2 {[%clk 0:01:54.3]}
76... Kh4 {[%clk 0:00:30.1]} 77. Kg2 {[%clk 0:01:54.1]} 77... Kg4 {[%clk
0:00:29.5]} 78. Kh2 {[%clk 0:01:54.9]} 78... Rc1 {[%clk 0:00:26.5]} 79. Rb4+
{[%clk 0:01:54.3]} 79... Kxh5 {[%clk 0:00:27]} 80. Rxb2 {[%clk 0:01:56.2]} 80...
g5 {[%clk 0:00:28.1]} 81. Kg3 {[%clk 0:01:57.7]} 81... Rc3+ {[%clk 0:00:27.6]}
82. Kg2 {[%clk 0:01:58.2]} 82... Kh4 {[%clk 0:00:28.1]} 83. Rb4+ {[%clk
0:01:59.6]} 83... g4 {[%clk 0:00:28.6]} 84. Rb6 {[%clk 0:02:01.5]} 84... h5
{[%clk 0:00:29.3]} 85. Rb1 {[%clk 0:02:02.6]} 85... Rc2+ {[%clk 0:00:30.3]} 86.
Kg1 {[%clk 0:02:03.7]} 86... Kh3 {[%clk 0:00:31.5]} 87. Rd1 {[%clk 0:02:04.2]}
87... g3 {[%clk 0:00:31.4]} 88. Ra1 {[%clk 0:02:04.9]} 88... h4 {[%clk
0:00:32.1]} 89. Kh1 {[%clk 0:02:04.8]} 89... Rh2+ {[%clk 0:00:27.6]} 90. Kg1
{[%clk 0:02:05]} 90... Rc2 {[%clk 0:00:27.5]} 91. Kh1 {[%clk 0:02:02.9]} 91...
Rc3 {[%clk 0:00:28]} 92. Kg1 {[%clk 0:02:03.1]} 92... g2 {[%clk 0:00:26.8]} 93.
Rd1 {[%clk 0:01:49.2]} 93... Re3 {[%clk 0:00:18]} 94. Rc1 {[%clk 0:01:42.5]}
94... Kg3 {[%clk 0:00:14.6]} 95. Rc3 {[%clk 0:01:42.5]} 95... Rf3 {[%clk
0:00:13.7]} 96. Re3 {[%clk 0:01:29.2]} 96... h3 {[%clk 0:00:13.2]} 97. Rxf3+
{[%clk 0:01:26.2]} 97... Kxf3 {[%clk 0:00:15]} 98. Kh2 {[%clk 0:01:28.1]} 98...
Kf2 {[%clk 0:00:16.2]} 99. Kxh3 {[%clk 0:01:30]} 99... g1=Q {[%clk 0:00:17.8]}
0-1